bitfinex-derivatives/quotes_BTCF0:USTF0_20250130
["timestamp","ask_amount","ask_price","bid_price","bid_amount"]
[1738253708995,0.16962601,105710.0,105700.0,0.30229758]
[1738253709195,0.16962601,105710.0,105700.0,0.8178404]
[1738253709402,0.20340358,105720.0,105700.0,0.8178404]
[1738253709403,0.1934089,105720.0,105710.0,0.189186]
[1738253709699,0.1934089,105720.0,105710.0,0.98852882]
[1738253710100,0.1934089,105720.0,105710.0,0.833786]
[1738253710511,0.1974089,105720.0,105710.0,0.833786]
[1738253711310,0.1974089,105720.0,105710.0,0.98852882]
[1738253711506,0.24977384,105740.0,105730.0,0.18915]
[1738253711810,0.24977384,105740.0,105730.0,0.71469282]
[1738253712103,0.1814064,105750.0,105740.0,0.189132]
[1738253712311,0.19122978,105750.0,105740.0,0.269032]
[1738253714005,0.19222978,105750.0,105740.0,0.269032]
[1738253714211,0.5360866,105750.0,105740.0,0.269032]
[1738253714707,0.5430866,105750.0,105740.0,0.270032]
[1738253714904,0.9332066,105750.0,105740.0,0.001]
[1738253715096,1.0061066,105750.0,105740.0,0.001]
[1738253716409,0.90943066,105750.0,105740.0,0.001]
[1738253717602,0.88011066,105750.0,105740.0,0.001]
[1738253717807,0.90939066,105750.0,105740.0,0.190132]
[1738253718003,0.88011066,105750.0,105740.0,0.190132]
[1738253718206,0.13183384,105750.0,105740.0,0.190132]
[1738253718406,0.10255384,105750.0,105740.0,0.266932]
[1738253718614,0.09273046,105750.0,105740.0,0.266932]
[1738253719105,0.09273046,105750.0,105740.0,0.49957482]
[1738253719314,0.09273046,105750.0,105740.0,0.50957482]
[1738253719613,0.09273046,105750.0,105740.0,0.87037482]
[1738253720207,0.20570441,105750.0,105740.0,0.87037482]
[1738253720407,0.14135934,105760.0,105740.0,0.71052282]
[1738253720704,0.00141885,105780.0,105770.0,0.189078]
[1738253720910,0.00141885,105780.0,105770.0,0.78252082]
[1738253722413,0.01031234,105790.0,105780.0,0.18906]
[1738253722614,0.01031234,105790.0,105780.0,0.62296]
[1738253723307,0.0001419,105790.0,105780.0,0.77770282]
[1738253723610,0.70472672,105790.0,105780.0,0.26216]
[1738253724000,0.70472672,105790.0,105780.0,0.18906]
[1738253724202,0.70472672,105790.0,105780.0,0.19106]
[1738253724407,0.1891839,105790.0,105780.0,0.19106]
[1738253725415,0.1891839,105790.0,105780.0,0.34580282]
[1738253725915,0.1891839,105790.0,105780.0,0.19106]
[1738253726916,0.1891839,105790.0,105780.0,0.18906]
[1738253727114,0.0001419,105790.0,105780.0,0.34380282]
[1738253727307,0.0001419,105790.0,105780.0,0.70460282]
[1738253727614,0.345515,105810.0,105800.0,0.189025]
[1738253728510,0.266915,105810.0,105800.0,0.189025]
[1738253729011,0.267915,105810.0,105800.0,0.189025]
[1738253729206,0.28016726,105810.0,105800.0,0.189025]
[1738253729608,0.64096726,105810.0,105800.0,0.189025]
[1738253729812,0.64096726,105810.0,105790.0,0.0740419]
[1738253729813,0.189025,105800.0,105790.0,0.2630689]
[1738253730109,0.189025,105800.0,105790.0,0.41781172]
[1738253730310,0.627225,105800.0,105790.0,0.41781172]
[1738253730710,0.627225,105800.0,105790.0,0.42781172]
[1738253731223,0.266425,105800.0,105790.0,0.42781172]
[1738253731718,0.627225,105800.0,105790.0,0.42781172]
[1738253731915,0.266425,105800.0,105790.0,0.42781172]
[1738253732819,0.627225,105800.0,105790.0,0.2730689]
[1738253733117,0.627225,105800.0,105790.0,0.0001419]
[1738253733118,0.81124782,105800.0,105790.0,0.0001419]
[1738253733308,0.18906,105780.0,105770.0,0.189075]
[1738253733507,0.57914,105780.0,105770.0,0.189075]
[1738253733910,0.437345,105780.0,105750.0,0.7356911]
[1738253734114,0.549896,105760.0,105750.0,0.6715911]
[1738253734508,0.5096419,105770.0,105750.0,0.63722892]
[1738253734708,0.5096419,105770.0,105760.0,0.34383882]
[1738253734709,0.3672069,105770.0,105760.0,0.34383882]
[1738253735511,0.7280069,105770.0,105760.0,0.34383882]
[1738253735718,0.7280069,105770.0,105760.0,0.189096]
[1738253735923,0.189096,105760.0,105750.0,0.19352529]
[1738253736424,0.268196,105760.0,105750.0,0.19352529]
[1738253736622,0.0791,105760.0,105750.0,0.34826811]
[1738253736806,0.6987269,105770.0,105760.0,0.189096]
[1738253737021,0.189096,105760.0,105750.0,0.19352629]
[1738253737321,0.579176,105760.0,105750.0,0.19352629]
[1738253738321,0.73391882,105760.0,105750.0,0.003]
[1738253738618,0.189114,105750.0,105740.0,0.16933768]
[1738253738819,0.189114,105750.0,105740.0,0.1892739]
[1738253738820,0.549914,105750.0,105740.0,0.1892739]
[1738253739022,0.3608,105750.0,105740.0,0.34401672]
[1738253739209,0.4547193,105770.0,105740.0,0.34401672]
[1738253739210,0.6438043,105770.0,105760.0,0.189096]
[1738253739415,0.6730843,105770.0,105760.0,0.189096]
[1738253740515,0.0121193,105770.0,105760.0,0.70463882]
[1738253740720,0.0021419,105770.0,105760.0,0.70463882]
[1738253740916,0.0021419,105770.0,105760.0,0.549896]
[1738253741224,0.0001419,105770.0,105760.0,0.189096]
[1738253741925,0.0001419,105770.0,105760.0,0.34383882]
[1738253742128,0.0001419,105770.0,105760.0,0.70463882]
[1738253742426,0.0001419,105770.0,105760.0,0.86463882]
[1738253742923,0.0001419,105770.0,105760.0,0.86563882]
[1738253743119,0.0001419,105770.0,105760.0,0.89491882]
[1738253743320,0.36221852,105790.0,105780.0,0.18906]
[1738253743524,0.55126052,105790.0,105780.0,0.18906]
[1738253743724,0.36221852,105790.0,105780.0,0.34380282]
[1738253743925,0.55126052,105790.0,105780.0,0.18906]
[1738253744225,0.36221852,105790.0,105780.0,0.34380282]
[1738253744423,0.55126052,105790.0,105780.0,0.34380282]
[1738253744927,0.36221852,105790.0,105780.0,0.34380282]
[1738253745121,0.36421852,105790.0,105780.0,0.34380282]
[1738253745320,0.00341852,105790.0,105780.0,0.34380282]
[1738253745520,0.00341852,105790.0,105780.0,0.70460282]
[1738253745719,0.00441852,105790.0,105780.0,0.70460282]
[1738253746723,0.00441852,105790.0,105780.0,0.18906]
[1738253747022,0.00441852,105790.0,105780.0,0.54986]
[1738253747325,0.00441852,105790.0,105780.0,0.18906]
[1738253748028,0.00441852,105790.0,105780.0,0.54986]
[1738253748233,0.19346052,105790.0,105780.0,0.18906]
[1738253748629,0.73824334,105790.0,105780.0,0.18906]
[1738253748929,0.58350052,105790.0,105780.0,0.18906]
[1738253750032,0.18906,105780.0,105770.0,0.2626179]
[1738253750234,0.70460282,105780.0,105770.0,0.1892179]
[1738253750433,0.78340282,105780.0,105770.0,0.1892179]
[1738253750735,0.70756,105780.0,105770.0,0.1892179]
[1738253751535,0.26786,105780.0,105770.0,0.1892179]
[1738253751727,0.2183,105780.0,105770.0,0.1892179]
[1738253751928,0.2183,105780.0,105770.0,0.34396072]
[1738253752128,0.2183,105780.0,105770.0,0.1892179]
[1738253752521,0.36221852,105790.0,105780.0,0.18906]
[1738253752522,0.55126352,105790.0,105780.0,0.18906]
[1738253752722,0.00141852,105790.0,105780.0,0.34380282]
[1738253753036,0.00141852,105790.0,105780.0,0.41880282]
[1738253753740,0.00141852,105790.0,105780.0,0.77960282]
[1738253753931,0.00241852,105790.0,105780.0,0.83960282]
[1738253754331,0.00241852,105790.0,105780.0,0.68486]
[1738253754728,0.00241852,105790.0,105780.0,0.32406]
[1738253755241,0.19146052,105790.0,105780.0,0.32406]
[1738253755535,0.19346052,105790.0,105780.0,0.32406]
[1738253755834,0.00441852,105790.0,105780.0,0.68486]
[1738253756033,0.00441852,105790.0,105780.0,0.86884282]
[1738253756333,0.14133166,105800.0,105790.0,0.189042]
[1738253756523,0.14133166,105800.0,105790.0,0.83458482]
[1738253758526,0.14133166,105800.0,105790.0,0.679842]
[1738253758730,0.0051419,105800.0,105790.0,0.679842]
[1738253758930,0.0061419,105800.0,105790.0,0.679842]
[1738253759332,0.0061419,105800.0,105790.0,0.83458482]
[1738253760037,0.074,105820.0,105810.0,0.189007]
[1738253760332,0.44740791,105830.0,105820.0,0.188989]
[1738253760523,1.01031073,105830.0,105820.0,0.188989]
[1738253760725,1.09041073,105830.0,105820.0,0.188989]
[1738253761527,0.188989,105820.0,105810.0,0.1891469]
[1738253761731,0.73377182,105820.0,105810.0,0.1891469]
[1738253762129,0.579029,105820.0,105810.0,0.1891469]
[1738253762437,0.549789,105820.0,105810.0,0.1891469]
[1738253762629,0.579029,105820.0,105810.0,0.1891469]
[1738253762838,0.583029,105820.0,105810.0,0.1891469]
[1738253763040,0.73777182,105820.0,105810.0,0.0001419]
[1738253764039,0.583029,105820.0,105810.0,0.1891489]
[1738253764738,0.73777182,105820.0,105810.0,0.1891489]
[1738253765131,0.70853182,105820.0,105810.0,0.0001419]
[1738253765434,0.70853182,105820.0,105790.0,0.43882481]
[1738253765435,0.189025,105800.0,105790.0,0.58060781]
[1738253765634,0.73380782,105800.0,105790.0,0.58060781]
[1738253765829,1.24520782,105800.0,105790.0,0.39156781]
[1738253766029,1.05618282,105800.0,105780.0,0.28147077]
[1738253766235,0.70458482,105790.0,105780.0,0.28147077]
[1738253766432,0.70458482,105790.0,105780.0,0.28161267]
[1738253766632,0.18906,105780.0,105770.0,0.22446345]
[1738253766836,0.73384282,105780.0,105770.0,0.41354145]
[1738253767333,0.5791,105780.0,105770.0,0.41354145]
[1738253767539,0.549854,105790.0,105780.0,0.18906]
[1738253767740,0.579094,105790.0,105780.0,0.18906]
[1738253767940,0.73383682,105790.0,105780.0,0.18906]
[1738253768942,0.218294,105790.0,105780.0,0.18906]
[1738253769336,0.579094,105790.0,105780.0,0.18906]
[1738253770032,0.73383682,105790.0,105780.0,0.18906]
[1738253770234,0.73383682,105790.0,105780.0,0.19306]
[1738253770434,0.579094,105790.0,105780.0,0.19306]
[1738253770838,0.218294,105790.0,105780.0,0.19306]
[1738253771137,0.218294,105790.0,105780.0,0.19406]
[1738253771839,0.218294,105790.0,105780.0,0.19306]
[1738253772045,0.218294,105790.0,105780.0,0.19406]
[1738253772244,0.73383682,105790.0,105780.0,0.19406]
[1738253772745,0.218294,105790.0,105780.0,0.19406]
[1738253773047,0.579094,105790.0,105780.0,0.19406]
[1738253773237,0.73383682,105790.0,105780.0,0.19106]
[1738253773952,0.74385531,105790.0,105780.0,0.002]
[1738253774145,0.60206331,105790.0,105770.0,0.189068]
[1738253774349,0.21831,105780.0,105770.0,0.189068]
[1738253775238,0.37305282,105780.0,105770.0,0.189068]
[1738253775435,0.37305282,105780.0,105770.0,0.191068]
[1738253776646,0.21831,105780.0,105770.0,0.191068]
[1738253777143,0.57911,105780.0,105770.0,0.195068]
[1738253777751,0.57911,105780.0,105770.0,0.191068]
[1738253777936,0.57911,105780.0,105770.0,0.194068]
[1738253778247,0.57911,105780.0,105770.0,0.193068]
[1738253778739,0.73385282,105780.0,105770.0,0.193068]
[1738253779346,0.57911,105780.0,105770.0,0.193068]
[1738253780142,0.21831,105780.0,105770.0,0.193068]
[1738253781643,0.02924,105780.0,105770.0,0.193068]
[1738253781843,0.70106025,105790.0,105780.0,0.18906]
[1738253782146,0.73030025,105790.0,105780.0,0.18906]
[1738253782347,0.88504307,105790.0,105780.0,0.18906]
[1738253782749,0.64426779,105790.0,105770.0,0.002]
[1738253783041,0.68211954,105780.0,105770.0,0.190071]
[1738253783243,0.68211954,105780.0,105770.0,0.001]
[1738253783761,0.189078,105770.0,105760.0,0.19064967]
[1738253784043,0.87869754,105770.0,105760.0,0.19064967]
[1738253784850,0.93024524,105770.0,105760.0,0.19064967]
[1738253785238,0.702578,105770.0,105760.0,0.19064967]
[1738253785443,0.262878,105770.0,105760.0,0.19064967]
[1738253785754,0.0001419,105780.0,105770.0,0.189078]
[1738253786042,0.2184419,105780.0,105770.0,0.549878]
[1738253786247,0.70456914,105780.0,105770.0,0.189078]
[1738253786447,0.81754887,105780.0,105770.0,0.189078]
[1738253788849,0.81754887,105780.0,105770.0,0.190078]
[1738253789146,0.81954887,105780.0,105770.0,0.190078]
[1738253789545,0.81954887,105780.0,105770.0,0.189078]
[1738253789746,0.81754887,105780.0,105770.0,0.191078]
[1738253791238,0.81754887,105780.0,105770.0,0.002]
[1738253791440,0.81754887,105780.0,105770.0,0.191078]
[1738253792653,0.69218163,105780.0,105770.0,0.190078]
[1738253792852,0.84674887,105780.0,105770.0,0.191078]
[1738253793655,0.98793863,105780.0,105770.0,0.190078]
[1738253793851,0.98993863,105780.0,105770.0,0.189078]
[1738253794548,0.62913863,105780.0,105770.0,0.189078]
[1738253794949,0.98993863,105780.0,105770.0,0.189078]
[1738253795750,0.98993863,105780.0,105770.0,0.190078]
[1738253797058,0.8749589,105780.0,105770.0,0.191078]
[1738253798158,0.8749589,105780.0,105770.0,0.190078]
[1738253798355,0.8769589,105780.0,105770.0,0.190078]
[1738253800559,0.8769589,105780.0,105770.0,0.001]
[1738253800760,0.189078,105770.0,105760.0,0.19064767]
[1738253800956,0.69913448,105770.0,105740.0,0.28147077]
[1738253801161,1.06528124,105750.0,105740.0,0.17687337]
[1738253801351,1.09448124,105750.0,105740.0,0.17687337]
[1738253802757,1.09448124,105750.0,105740.0,0.0686531]
[1738253802961,0.189132,105740.0,105730.0,0.3346181]
[1738253803165,0.70449924,105740.0,105730.0,0.3346181]
[1738253804863,0.65307999,105740.0,105730.0,0.3346181]
[1738253805065,0.56709598,105740.0,105710.0,0.38900677]
[1738253805364,0.75626398,105720.0,105710.0,0.57819177]
[1738253805950,0.65311599,105720.0,105710.0,0.57819177]
[1738253806151,0.10314799,105720.0,105710.0,0.57819177]
[1738253806359,0.32151599,105720.0,105710.0,0.57819177]
[1738253806558,0.32151599,105720.0,105710.0,0.189185]
[1738253806963,0.32151599,105720.0,105710.0,0.192185]
[1738253807364,0.79536633,105720.0,105710.0,0.192185]
[1738253807564,0.79636633,105720.0,105710.0,0.01]
[1738253810868,0.90903662,105720.0,105710.0,0.01]
[1738253813360,0.189186,105710.0,105700.0,0.10009458]
[1738253813564,0.73193399,105710.0,105700.0,0.10009458]
[1738253814774,0.73193399,105710.0,105700.0,0.10409458]
[1738253816467,0.73193399,105710.0,105700.0,0.10509458]
[1738253818465,0.83508198,105710.0,105700.0,0.10509458]
[1738253819063,0.047302,105700.0,105670.0,0.189249]
[1738253819264,0.29238699,105680.0,105670.0,0.189249]
[1738253821164,0.29238699,105680.0,105670.0,0.192249]
[1738253821967,0.65418699,105680.0,105670.0,0.200249]
[1738253822169,0.47452969,105680.0,105660.0,0.0789]
[1738253822371,0.189293,105650.0,105640.0,0.07961975]
[1738253822669,0.189293,105650.0,105640.0,0.00141975]
[1738253822670,1.04324099,105650.0,105640.0,0.00141975]
[1738253822868,0.189311,105640.0,105630.0,0.1546]
[1738253823074,0.75640698,105640.0,105630.0,0.1546]
[1738253823271,0.75640698,105640.0,105630.0,0.0764]
[1738253823673,0.56709598,105640.0,105610.0,0.345355]
[1738253823873,0.10314799,105620.0,105610.0,0.421755]
[1738253824376,0.65329499,105620.0,105610.0,0.421755]
[1738253825275,0.65329499,105620.0,105610.0,0.1546]
[1738253825874,0.46394799,105620.0,105600.0,0.289377]
[1738253826069,0.10314799,105610.0,105600.0,0.650177]
[1738253826270,0.65328199,105630.0,105600.0,0.63894799]
[1738253826472,0.02924,105620.0,105610.0,0.65331299]
[1738253826780,0.13238799,105620.0,105610.0,0.550165]
[1738253827179,0.13238799,105620.0,105610.0,0.551165]
[1738253829073,0.13238799,105620.0,105610.0,0.552165]
[1738253829474,0.02924,105620.0,105610.0,0.552165]
[1738253829872,0.30229064,105630.0,105610.0,0.3628]
[1738253830074,0.00980865,105630.0,105620.0,0.37479399]
[1738253830278,0.00980865,105630.0,105620.0,0.45069399]
[1738253830482,0.36222046,105650.0,105620.0,0.67214799]
[1738253830679,0.00142046,105650.0,105640.0,0.65325899]
[1738253831678,0.12251781,105660.0,105650.0,0.189293]
[1738253831873,0.11281219,105660.0,105650.0,0.73414099]
[1738253832273,0.14083787,105670.0,105650.0,0.61408799]
[1738253832472,0.14083787,105670.0,105660.0,0.73062299]
[1738253832679,0.16844614,105680.0,105670.0,0.189257]
[1738253832873,0.16844614,105680.0,105670.0,0.65320499]
[1738253834284,0.0001419,105690.0,105670.0,0.90318799]
[1738253834479,0.1965205,105700.0,105680.0,0.46394799]
[1738253834681,0.1965205,105700.0,105690.0,0.70471958]
[1738253835273,0.16833312,105710.0,105690.0,0.3608]
[1738253835479,0.178021,105710.0,105700.0,0.189186]
[1738253835686,0.1781629,105710.0,105700.0,0.189186]
[1738253835876,0.7281479,105710.0,105700.0,0.189186]
[1738253836186,0.88284648,105710.0,105700.0,0.189186]
[1738253836387,0.189203,105700.0,105690.0,0.1893579]
[1738253836580,0.81624158,105700.0,105690.0,0.0001419]
[1738253838485,0.189221,105690.0,105680.0,0.001]
[1738253838671,0.73391958,105690.0,105680.0,0.001]
[1738253839083,0.54469858,105690.0,105670.0,0.189253]
[1738253839285,0.70473758,105680.0,105670.0,0.189253]
[1738253840476,0.70573758,105680.0,105670.0,0.189253]
[1738253841486,0.78193758,105680.0,105670.0,0.189253]
[1738253842886,0.60226737,105680.0,105660.0,0.0001419]
[1738253843087,0.654757,105670.0,105660.0,0.1894099]
[1738253843478,0.80945558,105670.0,105660.0,0.0001419]
[1738253843682,0.88735558,105670.0,105660.0,0.0001419]
[1738253843983,0.5434,105670.0,105660.0,0.1894169]
[1738253844188,0.1826,105670.0,105660.0,0.1894169]
[1738253844786,0.0755,105670.0,105660.0,0.1894169]
[1738253845674,0.4363,105670.0,105660.0,0.1894169]
[1738253845981,0.80945558,105670.0,105660.0,0.0001419]
[1738253846486,0.655757,105670.0,105660.0,0.1894169]
[1738253846880,0.4373,105670.0,105660.0,0.1894169]
[1738253847075,0.4363,105670.0,105660.0,0.1894169]
[1738253847390,0.004,105670.0,105660.0,0.75491548]
[1738253847777,0.26841356,105690.0,105680.0,0.189239]
[1738253847778,0.08441356,105690.0,105680.0,0.189239]
[1738253847977,0.08441356,105690.0,105680.0,0.70473758]
[1738253848182,0.08441356,105690.0,105680.0,0.78453758]
[1738253848781,0.0001419,105690.0,105680.0,0.78453758]
[1738253849182,0.3609419,105690.0,105680.0,0.269039]
[1738253849387,0.3609419,105690.0,105680.0,0.189239]
[1738253849690,0.0011419,105690.0,105680.0,0.189239]
[1738253850886,0.0011419,105690.0,105680.0,0.70473758]
[1738253852583,0.0011419,105690.0,105680.0,0.550039]
[1738253853190,0.3619419,105690.0,105680.0,0.189239]
[1738253853385,0.5511629,105690.0,105680.0,0.189239]
[1738253853683,0.1903629,105690.0,105680.0,0.189239]
[1738253853888,0.5511629,105690.0,105680.0,0.189239]
[1738253854093,0.1903629,105690.0,105680.0,0.189239]
[1738253854590,0.5803629,105690.0,105680.0,0.189239]
[1738253855390,0.0303419,105690.0,105680.0,0.189239]
[1738253855892,0.2195629,105690.0,105680.0,0.189239]
[1738253856082,0.3004629,105690.0,105680.0,0.189239]
[1738253857091,0.1112419,105690.0,105680.0,0.189239]
[1738253857384,0.0011419,105690.0,105680.0,0.29242289]
[1738253857588,0.0011419,105690.0,105680.0,0.34242289]
[1738253858088,0.0011419,105690.0,105680.0,0.29242289]
[1738253858687,0.0011419,105690.0,105680.0,0.71322289]
[1738253859181,0.0011419,105690.0,105680.0,0.85582289]
[1738253860284,0.0011419,105690.0,105680.0,0.88502289]
[1738253860586,0.0011419,105690.0,105680.0,0.90737395]
[1738253863084,0.0011419,105690.0,105680.0,0.55600403]
[1738253863287,0.0011419,105690.0,105680.0,0.49060403]
[1738253863587,0.0011419,105690.0,105680.0,0.85140403]
[1738253865088,9e-07,105690.0,105680.0,1.00613898]
[1738253865289,9e-07,105690.0,105680.0,1.30613898]
[1738253865792,9e-07,105690.0,105680.0,2.80613898]
[1738253865994,0.30992796,105720.0,105710.0,0.189185]
[1738253866197,0.30992796,105720.0,105710.0,0.549985]
[1738253867390,0.30992796,105720.0,105710.0,0.550985]
[1738253867391,0.31892796,105720.0,105710.0,0.550985]
[1738253867991,0.30992796,105720.0,105710.0,0.551985]
[1738253868291,0.30992796,105720.0,105710.0,0.80671995]
[1738253868487,0.31392796,105720.0,105710.0,0.88931995]
[1738253869300,0.30992796,105720.0,105710.0,0.89031995]
[1738253869500,0.30992796,105720.0,105710.0,0.735585]
[1738253869698,0.30992796,105720.0,105710.0,0.552985]
[1738253869900,0.38932796,105720.0,105710.0,0.552985]
[1738253870194,0.0794,105720.0,105710.0,0.552985]
[1738253870503,0.0794,105720.0,105710.0,0.74771995]
[1738253870700,0.0794,105720.0,105710.0,0.70771995]
[1738253870899,0.0794,105720.0,105710.0,0.552985]
[1738253871701,0.0794,105720.0,105710.0,0.75771995]
[1738253872204,0.0794,105720.0,105710.0,0.70771995]
[1738253872895,0.0794,105720.0,105710.0,0.34691995]
[1738253873103,0.0794,105720.0,105710.0,0.192185]
[1738253873396,0.0794,105720.0,105710.0,0.552985]
[1738253873896,0.0787419,105730.0,105720.0,0.189167]
[1738253874101,0.0787419,105730.0,105720.0,0.91470195]
[1738253874405,0.0001419,105730.0,105720.0,0.99700195]
[1738253875193,0.0011419,105730.0,105720.0,0.99700195]
[1738253875389,0.0011419,105730.0,105720.0,1.1809369]
[1738253875698,0.37232783,105750.0,105740.0,0.189131]
[1738253877199,0.37932783,105750.0,105740.0,0.190131]
[1738253877505,0.22662783,105750.0,105740.0,0.75566595]
[1738253877707,0.22662783,105750.0,105740.0,0.78486595]
[1738253877906,0.22862783,105750.0,105740.0,0.78486595]
[1738253878101,0.0875,105750.0,105740.0,0.78486595]
[1738253880098,0.0875,105750.0,105740.0,0.75566595]
[1738253880402,0.0875,105750.0,105740.0,0.190131]
[1738253882106,0.0875,105750.0,105740.0,0.29319712]
[1738253882607,0.0875,105750.0,105740.0,0.190131]
[1738253883396,0.276614,105750.0,105740.0,0.190131]
[1738253885708,0.0875,105750.0,105740.0,0.190131]
[1738253885908,0.0875,105750.0,105740.0,0.34470102]
[1738253886115,0.0875,105750.0,105740.0,0.38470102]
[1738253886294,0.0875,105750.0,105740.0,0.74550102]
[1738253886701,0.0875,105750.0,105740.0,0.70550102]
[1738253887095,0.0875,105750.0,105740.0,0.550931]
[1738253887509,0.0875,105750.0,105740.0,0.240131]
[1738253887700,0.276614,105750.0,105740.0,0.240131]
[1738253887901,0.42918402,105750.0,105740.0,0.240131]
[1738253888101,0.268614,105750.0,105740.0,0.239131]
[1738253888301,0.633414,105750.0,105740.0,0.189131]
[1738253888502,0.272614,105750.0,105730.0,0.4082279]
[1738253888710,0.272614,105750.0,105730.0,0.2192909]
[1738253888711,0.1602,105740.0,105730.0,0.2192909]
[1738253889113,0.1602,105740.0,105730.0,0.73466092]
[1738253889312,0.005,105750.0,105730.0,0.57467192]
[1738253889515,0.005,105750.0,105740.0,0.70450102]
[1738253889722,0.005,105750.0,105740.0,0.91450102]
[1738253890604,0.005,105750.0,105740.0,2.41450102]
[1738253890812,0.1603419,105760.0,105750.0,0.189114]
[1738253891109,0.1603419,105760.0,105750.0,0.80448402]
[1738253892010,0.0001419,105760.0,105750.0,0.80448402]
[1738253892215,0.0001419,105760.0,105750.0,0.80548402]
[1738253892216,0.0071419,105760.0,105750.0,0.80548402]
[1738253892413,0.0071419,105760.0,105750.0,0.88578402]
[1738253892714,0.0091419,105760.0,105750.0,0.80548402]
[1738253894203,0.0021419,105760.0,105750.0,0.80648402]
[1738253894909,0.0001419,105760.0,105750.0,0.80748402]
[1738253895113,0.0001419,105760.0,105750.0,0.81721516]
[1738253897303,0.0001419,105760.0,105750.0,0.80748402]
[1738253902230,0.0001419,105760.0,105750.0,0.88628402]
[1738253902713,0.0001419,105760.0,105750.0,0.83472122]
[1738253903417,0.0001419,105760.0,105750.0,0.75592122]
[1738253905111,0.0001419,105760.0,105750.0,0.85892844]
[1738253906322,0.0001419,105760.0,105750.0,0.78508122]
[1738253906518,0.0001419,105760.0,105750.0,0.95422689]
[1738253907514,9e-07,105760.0,105750.0,1.05723411]
[1738253907717,3.7e-07,105780.0,105750.0,0.86812011]
[1738253907920,0.14112783,105790.0,105780.0,0.18906]
[1738253908224,0.03661083,105790.0,105780.0,1.00503444]
[1738253908406,0.03661083,105790.0,105780.0,1.08463444]
[1738253909621,0.26894203,105800.0,105780.0,0.89557444]
[1738253909808,0.26894203,105800.0,105790.0,0.81504922]
[1738253910016,0.04532356,105800.0,105790.0,1.09805644]
[1738253910210,5.6e-07,105800.0,105790.0,1.09805644]
[1738253910417,0.1965205,105810.0,105800.0,0.189024]
[1738253910622,0.1965205,105810.0,105800.0,0.97499844]
[1738253910824,0.1965205,105810.0,105800.0,1.07760858]
[1738253911118,0.22542224,105820.0,105800.0,1.07760858]
[1738253911119,0.11606902,105820.0,105810.0,0.189006]
[1738253911326,0.19794813,105840.0,105830.0,0.188971]
[1738253911525,0.19794813,105840.0,105830.0,1.42835558]
[1738253912915,0.20194813,105840.0,105830.0,1.42835558]
[1738253913523,0.20194813,105840.0,105830.0,1.09404329]
[1738253914024,0.20494813,105840.0,105830.0,1.09404329]
[1738253914225,0.20494813,105840.0,105830.0,1.10363117]
[1738253915024,0.20294813,105840.0,105830.0,1.10363117]
[1738253915423,0.20294813,105840.0,105830.0,0.38203117]
[1738253915618,0.39190113,105840.0,105830.0,0.70408329]
[1738253915819,0.20294813,105840.0,105830.0,0.70408329]
[1738253916417,0.005,105840.0,105830.0,0.70408329]
[1738253916923,0.005,105840.0,105830.0,0.90839558]
[1738253917113,0.005,105840.0,105830.0,0.70408329]
[1738253918014,0.005,105840.0,105830.0,0.75324329]
[1738253918220,0.004,105840.0,105830.0,0.70408329]
[1738253918621,0.34433058,105850.0,105830.0,0.70408329]
[1738253918915,0.34433058,105850.0,105840.0,0.188953]
[1738253919514,0.34433058,105850.0,105840.0,0.34326529]
[1738253919718,0.34433058,105850.0,105840.0,0.188953]
[1738253919926,0.34533058,105850.0,105840.0,0.188953]
[1738253920124,0.15639458,105850.0,105840.0,0.34326529]
[1738253920624,0.34532958,105850.0,105840.0,0.34326529]
[1738253920819,0.51719458,105850.0,105820.0,0.53959757]
[1738253921118,0.70408329,105830.0,105820.0,0.16928757]
[1738253921322,0.189006,105810.0,105800.0,0.35957888]
[1738253921621,0.549806,105810.0,105800.0,0.35957888]
[1738253922323,0.807316,105820.0,105810.0,0.189006]
[1738253922527,0.8074579,105820.0,105810.0,0.189006]
[1738253923521,0.6184619,105820.0,105800.0,0.17056288]
[1738253923721,0.549806,105810.0,105800.0,0.35958188]
[1738253924227,0.549806,105810.0,105800.0,0.36258188]
[1738253924919,0.549806,105810.0,105800.0,0.19043621]
[1738253925119,0.549806,105810.0,105800.0,0.19143621]
[1738253925915,0.189006,105810.0,105800.0,0.19143621]
[1738253926326,0.189006,105810.0,105800.0,0.19343621]
[1738253926518,0.549806,105810.0,105800.0,0.19343621]
[1738253927927,0.578966,105810.0,105800.0,0.19243621]
[1738253928229,0.549806,105810.0,105800.0,0.19343621]
[1738253928415,0.189006,105810.0,105800.0,0.19343621]
[1738253928618,0.19849868,105810.0,105800.0,0.19143621]
[1738253928814,0.19849868,105810.0,105800.0,0.19343621]
[1738253930517,0.55929868,105810.0,105800.0,0.19343621]
[1738253931118,0.00949268,105810.0,105800.0,0.7085485]
[1738253931326,0.8074959,105820.0,105810.0,0.189006]
[1738253931921,0.7783359,105820.0,105810.0,0.189006]
[1738253932225,0.8074959,105820.0,105810.0,0.189006]
[1738253932426,0.2285419,105820.0,105810.0,0.229006]
[1738253932625,0.2285419,105820.0,105810.0,0.69270174]
[1738253933325,0.97110182,105860.0,105810.0,0.63575148]
[1738253933625,0.708535,105850.0,105830.0,0.10289574]
[1738253933923,0.65266174,105840.0,105830.0,0.188968]
[1738253934129,0.578886,105840.0,105830.0,0.188968]
[1738253934523,0.68178174,105840.0,105830.0,0.188968]
[1738253934724,0.65266174,105840.0,105830.0,0.188968]
[1738253934922,0.68178174,105840.0,105830.0,0.188968]
[1738253935429,0.65266174,105840.0,105830.0,0.188968]
[1738253935630,0.68178174,105840.0,105830.0,0.188968]
[1738253936031,0.218086,105840.0,105830.0,0.189968]
[1738253936330,0.71862958,105850.0,105840.0,0.188953]
[1738253936530,0.71162958,105850.0,105840.0,0.29184874]
[1738253936729,0.71162958,105850.0,105840.0,0.188953]
[1738253936918,0.70862958,105850.0,105840.0,0.188953]
[1738253937123,0.15889458,105850.0,105840.0,0.76264874]
[1738253937323,0.15889458,105850.0,105840.0,0.65264874]
[1738253937627,0.15889458,105850.0,105840.0,0.29184874]
[1738253937832,0.16389458,105850.0,105840.0,0.29184874]
[1738253938429,0.16389458,105850.0,105840.0,0.549753]
[1738253938636,0.35282958,105850.0,105840.0,0.188953]
[1738253938827,0.71362958,105850.0,105840.0,0.188953]
[1738253939924,0.35282958,105850.0,105840.0,0.188953]
[1738253940429,0.16389458,105850.0,105840.0,0.188953]
[1738253941026,0.35282958,105850.0,105840.0,0.188953]
[1738253941234,0.71362958,105850.0,105840.0,0.188953]
[1738253942835,0.52469458,105850.0,105840.0,0.188953]